[Event "GER-ch Youth U16 2019"]
[Site "Willingen"]
[Date "2019.06.13"]
[Round "7.12"]
[White "Roehr, Tobias"]
[Black "Buller, Ian Joshua"]
[Result "0-1"]
[ECO "D37"]
[WhiteElo "2208"]
[BlackElo "1904"]
[Annotator "NA"]
[PlyCount "100"]
[EventDate "2019.06.07"]
[EventType "swiss"]
[EventRounds "9"]
[EventCountry "GER"]
[SourceTitle "playchess.com"]
[Source "ChessBase"]
[SourceQuality "1"]
[TimeControl "40/5400+30:1800+30"]

1. d4 {[%emt 0:00:00]} Nf6 {[%emt 0:00:00]} 2. c4 {[%emt 0:00:00]} e6 {[%emt 0:00:00]} 3. Nf3 {[%emt 0:00:00]} d5 {[%emt 0:00:00]} 4. Nc3 {[%emt 0:00:17]} dxc4 {[%emt 0:00:03]} 5. e3 {[%emt 0:01:26]} a6 {[%emt 0:00:12]} 6. a4 {[%emt 0:00:29]} c5 {[%emt 0:01:44]} 7. Bxc4 {[%emt 0:00:38]} Nc6 {[%emt 0:01:18]} 8. O-O {[%emt 0:01:15]} cxd4 {[%emt 0:02:25]} 9. exd4 {[%emt 0:04:16]} Be7 {[%emt 0:07:23]} 10. Qd3 {[%emt 0:06:31]} O-O {[%emt 0:02:06]} 11. Bf4 {[%emt 0:02:05]} Nb4 {[%emt 0:06:06]} 12. Qe2 {[%emt 0:04:25]} Nbd5 {[%emt 0:01:09]} 13. Bg3 {[%emt 0:06:05]} b6 {[%emt 0:07:55]} 14. Rac1 {[%emt 0:03:43]} Bb7 {[%emt 0:01:22]} 15. Ne5 {[%emt 0:03:38]} Bd6 {[%emt 0:31:44]} 16. Rfd1 {[%emt 0:07:05]} Qe7 {[%emt 0:00:52]} 17. Bd3 {[%emt 0:05:14]} Rfc8 {[%emt 0:10:49]} 18. Bb1 {[%emt 0:07:47]} Nxc3 {[%emt 0:02:40]} 19. bxc3 {[%emt 0:00:36]} Ba3 {[%emt 0:02:00]} 20. Rc2 {[%emt 0:00:41]} Be4 {[%emt 0:02:01]} 21. Bh4 {[%emt 0:01:22]} Qb7 {[%emt 0:04:34]} 22. Bxf6 {[%emt 0:05:39]} gxf6 {[%emt 0:00:06]} 23. Qg4+ {[%emt 0:01:02]} Kf8 {[%emt 0:00:36]} 24. Nd7+ {[%emt 0:04:55]} Ke7 {[%emt 0:04:54]} 25. Nxf6 {[%emt 0:04:40]} Kxf6 {[%emt 0:01:09]} 26. f3 {[%emt 0:01:13]} Bf5 {[%emt 0:01:17]} 27. Qh4+ {[%emt 0:00:05]} Kg7 {[%emt 0:00:08]} 28. Qg5+ {[%emt 0:01:20]} Bg6 {[%emt 0:01:26]} 29. Re2 {[%emt 0:02:50]} Qe7 {[%emt 0:00:13]} 30. Qg3 {[%emt 0:00:32]} Bd6 {[%emt 0:00:26]} 31. f4 {[%emt 0:00:04]} Kh8 {[%emt 0:00:52]} 32. d5 {[%emt 0:00:12]} Bxb1 {[%emt 0:00:48]} 33. Rxb1 {[%emt 0:00:05]} Rg8 {[%emt 0:00:29]} 34. Qf3 {[%emt 0:00:45]} Qf6 {[%emt 0:00:48]} 35. dxe6 {[%emt 0:00:31]} fxe6 {[%emt 0:00:09]} 36. g3 {[%emt 0:00:58]} Rac8 {[%emt 0:00:35]} 37. Rd1 {[%emt 0:03:29]} Bc5+ {[%emt 0:04:28]} 38. Kg2 {[%emt 0:00:24]} Rcd8 {[%emt 0:00:25]} 39. Rde1 {[%emt 0:00:13]} Rd6 {[%emt 0:00:53]} 40. Re5 {[%emt 0:00:21]} Rgd8 {[%emt 0:03:00]} 41. a5 {[%emt 0:34:11]} Qg6 {[%emt 0:04:55]} 42. Rg5 {[%emt 0:00:00]} Qc2+ {[%emt 0:02:07]} 43. Kh3 {[%emt 0:00:00]} Qd3 {[%emt 0:09:05]} 44. Qb7 {[%emt 0:00:00]} Qxc3 {[%emt 0:02:37]} 45. Ree5 {[%emt 0:00:00]} R6d7 {[%emt 0:00:54]} 46. Qc6 {[%emt 0:00:00]} Bd4 {[%emt 0:03:35]} 47. Rxe6 {[%emt 0:00:00]} Qxc6 {[%emt 0:00:09]} 48. Rxc6 {[%emt 0:00:00]} Rd6 {[%emt 0:00:24]} 49. Rc7 {[%emt 0:00:00]} bxa5 {[%emt 0:00:27]} 50. Rxa5 {[%emt 0:00:00]} Bb6 {[%emt 0:00:19] normal} 0-1

[Event "GER-ch Youth U16 2019"]
[Site "Willingen"]
[Date "2019.06.13"]
[Round "7.13"]
[White "Pahl, Erik"]
[Black "Biermann, Florian"]
[Result "0-1"]
[ECO "B96"]
[WhiteElo "2113"]
[BlackElo "2018"]
[Annotator "NA"]
[PlyCount "91"]
[EventDate "2019.06.07"]
[EventType "swiss"]
[EventRounds "9"]
[EventCountry "GER"]
[SourceTitle "playchess.com"]
[Source "ChessBase"]
[SourceQuality "1"]
[TimeControl "40/5400+30:1800+30"]

1. e4 {[%emt 0:00:00]} c5 {[%emt 0:00:00]} 2. Nf3 {[%emt 0:00:00]} d6 {[%emt 0:00:00]} 3. d4 {[%emt 0:00:00]} cxd4 {[%emt 0:00:00]} 4. Nxd4 {[%emt 0:00:00]} Nf6 {[%emt 0:00:00]} 5. Nc3 {[%emt 0:00:00]} a6 {[%emt 0:00:00]} 6. Bg5 {[%emt 0:00:04]} e6 {[%emt 0:00:06]} 7. f4 {[%emt 0:00:03]} h6 {[%emt 0:00:03]} 8. Bh4 {[%emt 0:00:05]} Be7 {[%emt 0:00:03]} 9. Qf3 {[%emt 0:00:04]} Nbd7 {[%emt 0:00:05]} 10. O-O-O {[%emt 0:00:06]} Qc7 {[%emt 0:00:06]} 11. f5 {[%emt 0:00:05]} e5 {[%emt 0:04:18]} 12. Nde2 {[%emt 0:01:48]} b5 {[%emt 0:02:49]} 13. Bxf6 {[%emt 0:00:31]} Nxf6 {[%emt 0:00:33]} 14. Nd5 {[%emt 0:00:07]} Nxd5 {[%emt 0:02:43]} 15. exd5 {[%emt 0:00:06]} Bb7 {[%emt 0:17:56]} 16. Ng3 {[%emt 0:02:34]} Rc8 {[%emt 0:07:18]} 17. Bd3 {[%emt 0:00:08]} Qc5 {[%emt 0:05:01]} 18. Be4 {[%emt 0:00:08]} Bg5+ {[%emt 0:09:59]} 19. Kb1 {[%emt 0:01:15]} Qe3 {[%emt 0:00:07]} 20. Qh5 {[%emt 0:00:05]} Bf6 {[%emt 0:08:17]} 21. Rhe1 {[%emt 0:02:23]} Qc5 {[%emt 0:02:28]} 22. Qf3 {[%emt 0:09:32]} a5 {[%emt 0:01:12]} 23. Nh5 {[%emt 0:01:51]} a4 {[%emt 0:03:14]} 24. h4 {[%emt 0:10:01]} b4 {[%emt 0:02:51]} 25. g4 {[%emt 0:03:41]} Bxh4 {[%emt 0:05:38]} 26. Nxg7+ {[%emt 0:03:30]} Kd8 {[%emt 0:01:35]} 27. Rh1 {[%emt 0:19:51]} Bf6 {[%emt 0:00:52]} 28. Nh5 {[%emt 0:02:21]} Bg5 {[%emt 0:00:19]} 29. Rh3 {[%emt 0:01:51]} Ra8 {[%emt 0:01:27]} 30. a3 {[%emt 0:00:50]} bxa3 {[%emt 0:02:22]} 31. Qxa3 {[%emt 0:02:56]} Qxa3 {[%emt 0:00:51]} 32. Rxa3 {[%emt 0:00:15]} Kd7 {[%emt 0:01:47]} 33. Ng3 {[%emt 0:02:05]} Rhc8 {[%emt 0:01:42]} 34. Ne2 {[%emt 0:02:04]} Rc4 {[%emt 0:02:02]} 35. Nc3 {[%emt 0:00:37]} Be3 {[%emt 0:01:33]} 36. Bd3 {[%emt 0:05:34]} Rxg4 {[%emt 0:00:47]} 37. Bb5+ {[%emt 0:00:09]} Ke7 {[%emt 0:00:33]} 38. Rxa4 {[%emt 0:01:17]} Raxa4 {[%emt 0:00:37]} 39. Bxa4 {[%emt 0:00:16]} h5 {[%emt 0:00:39]} 40. Bb5 {[%emt 0:02:46]} h4 {[%emt 0:03:06]} 41. Rh1 {[%emt 0:30:24]} Rg1+ {[%emt 0:31:40]} 42. Rxg1 {[%emt 0:01:39]} Bxg1 {[%emt 0:00:05]} 43. Bf1 {[%emt 0:00:07]} Bd4 {[%emt 0:02:37]} 44. Bg2 {[%emt 0:01:31]} Bxc3 {[%emt 0:06:01]} 45. bxc3 {[%emt 0:00:07]} Kf6 {[%emt 0:03:44]} 46. c4 {[%emt 0:01:09] normal} 0-1

[Event "GER-ch Youth U16 2019"]
[Site "Willingen"]
[Date "2019.06.13"]
[Round "7.14"]
[White "Jeschke, Jan"]
[Black "Burian, Simon"]
[Result "1/2-1/2"]
[ECO "B21"]
[WhiteElo "1915"]
[BlackElo "2001"]
[Annotator "NA"]
[PlyCount "44"]
[EventDate "2019.06.07"]
[EventType "swiss"]
[EventRounds "9"]
[EventCountry "GER"]
[SourceTitle "playchess.com"]
[Source "ChessBase"]
[SourceQuality "1"]
[TimeControl "40/5400+30:1800+30"]

1. e4 {[%emt 0:00:00]} c5 {[%emt 0:00:00]} 2. d4 {[%emt 0:00:00]} cxd4 {[%emt 0:00:00]} 3. c3 {[%emt 0:00:00]} g6 {[%emt 0:00:00]} 4. cxd4 {[%emt 0:00:15]} d5 {[%emt 0:00:15]} 5. exd5 {[%emt 0:00:06]} Nf6 {[%emt 0:00:09]} 6. Bb5+ {[%emt 0:04:49]} Nbd7 {[%emt 0:00:48]} 7. Nc3 {[%emt 0:01:32]} Bg7 {[%emt 0:01:01]} 8. Nf3 {[%emt 0:01:58]} O-O {[%emt 0:01:16]} 9. O-O {[%emt 0:00:44]} Nb6 {[%emt 0:02:06]} 10. Re1 {[%emt 0:02:25]} a6 {[%emt 0:01:45]} 11. Bd3 {[%emt 0:03:52]} Nbxd5 {[%emt 0:01:24]} 12. Bg5 {[%emt 0:00:40]} Re8 {[%emt 0:09:41]} 13. Ne5 {[%emt 0:05:57]} Nxc3 {[%emt 0:05:09]} 14. bxc3 {[%emt 0:00:05]} Nd5 {[%emt 0:00:46]} 15. Qf3 {[%emt 0:20:22]} f6 {[%emt 0:20:48]} 16. Bc4 {[%emt 0:05:29]} e6 {[%emt 0:02:23]} 17. Bh4 {[%emt 0:00:46]} Nb6 {[%emt 0:01:52]} 18. Bb3 {[%emt 0:01:34]} g5 {[%emt 0:13:28]} 19. Bxg5 {[%emt 0:00:51]} fxg5 {[%emt 0:00:04]} 20. Qf7+ {[%emt 0:00:46]} Kh8 {[%emt 0:00:03]} 21. Re3 {[%emt 0:03:54]} g4 {[%emt 0:03:03]} 22. Qh5 {[%emt 0:13:24]} Kg8 {[%emt 0:05:42] normal} 1/2-1/2

[Event "GER-ch Youth U16 2019"]
[Site "Willingen"]
[Date "2019.06.14"]
[Round "8.1"]
[White "Wachinger, Nikolas"]
[Black "Suvorov, Alexander"]
[Result "1/2-1/2"]
[ECO "B41"]
[WhiteElo "2311"]
[BlackElo "2325"]
[Annotator "NA"]
[PlyCount "99"]
[EventDate "2019.06.07"]
[EventType "swiss"]
[EventRounds "9"]
[EventCountry "GER"]
[SourceTitle "playchess.com"]
[Source "ChessBase"]
[SourceQuality "1"]
[TimeControl "40/5400+30:1800+30"]

1. e4 {[%emt 0:00:00]} c5 {[%emt 0:00:00]} 2. Nf3 {[%emt 0:00:00]} e6 {[%emt 0:00:00]} 3. d4 {[%emt 0:00:00]} cxd4 {[%emt 0:00:21]} 4. Nxd4 {[%emt 0:00:01]} a6 {[%emt 0:00:22]} 5. c4 {[%emt 0:00:22]} Nf6 {[%emt 0:00:24]} 6. Nc3 {[%emt 0:00:11]} Bb4 {[%emt 0:00:27]} 7. Qd3 {[%emt 0:00:17]} d6 {[%emt 0:01:00]} 8. Nc2 {[%emt 0:03:41]} Bc5 {[%emt 0:02:58]} 9. Be3 {[%emt 0:05:39]} Nbd7 {[%emt 0:10:19]} 10. Rd1 {[%emt 0:11:04]} Qb6 {[%emt 0:14:05]} 11. b3 {[%emt 0:08:39]} Bxe3 {[%emt 0:10:23]} 12. Nxe3 {[%emt 0:05:42]} Qa5 {[%emt 0:02:35]} 13. Qd2 {[%emt 0:07:33]} O-O {[%emt 0:09:14]} 14. Be2 {[%emt 0:04:56]} Ne8 {[%emt 0:04:53]} 15. O-O {[%emt 0:06:54]} b6 {[%emt 0:03:50]} 16. f4 {[%emt 0:05:47]} Bb7 {[%emt 0:05:37]} 17. e5 {[%emt 0:21:40]} Rd8 {[%emt 0:06:32]} 18. exd6 {[%emt 0:00:18]} Bc6 {[%emt 0:10:44]} 19. Nc2 {[%emt 0:00:40]} Qc5+ {[%emt 0:01:10]} 20. Qd4 {[%emt 0:00:50]} Nb8 {[%emt 0:04:38]} 21. Qxc5 {[%emt 0:03:02]} bxc5 {[%emt 0:00:01]} 22. Bf3 {[%emt 0:00:10]} Nxd6 {[%emt 0:01:07]} 23. Rf2 {[%emt 0:03:20]} Nb7 {[%emt 0:01:55]} 24. Bxc6 {[%emt 0:01:50]} Rxd1+ {[%emt 0:00:25]} 25. Nxd1 {[%emt 0:00:01]} Nxc6 {[%emt 0:00:01]} 26. Rd2 {[%emt 0:00:28]} Rd8 {[%emt 0:00:15]} 27. Rxd8+ {[%emt 0:00:36]} Nbxd8 {[%emt 0:00:16]} 28. Kf2 {[%emt 0:00:43]} Kf8 {[%emt 0:00:15]} 29. Nc3 {[%emt 0:00:18]} Nb7 {[%emt 0:00:30]} 30. Ne4 {[%emt 0:00:21]} Ke7 {[%emt 0:00:23]} 31. Ne1 {[%emt 0:02:01]} f5 {[%emt 0:00:40]} 32. Ng5 {[%emt 0:00:35]} h6 {[%emt 0:00:17]} 33. Ngf3 {[%emt 0:00:02]} Nd6 {[%emt 0:00:51]} 34. Nd2 {[%emt 0:00:36]} Nb7 {[%emt 0:02:23]} 35. Nd3 {[%emt 0:00:27]} Kd6 {[%emt 0:00:40]} 36. Nf3 {[%emt 0:01:36]} Nbd8 {[%emt 0:01:45]} 37. h3 {[%emt 0:01:01]} Nf7 {[%emt 0:00:33]} 38. g4 {[%emt 0:01:37]} g5 {[%emt 0:01:46]} 39. Ke3 {[%emt 0:01:05]} a5 {[%emt 0:00:53]} 40. a3 {[%emt 0:00:48]} fxg4 {[%emt 0:02:42]} 41. hxg4 {[%emt 0:31:25]} gxf4+ {[%emt 0:14:25]} 42. Kxf4 {[%emt 0:00:00]} Nb8 {[%emt 0:04:45]} 43. Nde5 {[%emt 0:00:00]} Nxe5 {[%emt 0:02:13]} 44. Nxe5 {[%emt 0:00:00]} Ke7 {[%emt 0:00:31]} 45. Ke4 {[%emt 0:00:00]} Kf6 {[%emt 0:00:51]} 46. Kf4 {[%emt 0:00:00]} Ke7 {[%emt 0:00:15]} 47. g5 {[%emt 0:00:00]} hxg5+ {[%emt 0:00:12]} 48. Kxg5 {[%emt 0:00:00]} Kd6 {[%emt 0:01:37]} 49. Nf3 {[%emt 0:00:00]} Nd7 {[%emt 0:00:51]} 50. Kf4 {[%emt 0:00:00] normal Ke5+ Ke4+} 1/2-1/2

[Event "GER-ch Youth U16 2019"]
[Site "Willingen"]
[Date "2019.06.14"]
[Round "8.2"]
[White "Dobrikov, Marco"]
[Black "Knuedel, Torben"]
[Result "1/2-1/2"]
[ECO "C54"]
[WhiteElo "2281"]
[BlackElo "2044"]
[Annotator "NA"]
[PlyCount "56"]
[EventDate "2019.06.07"]
[EventType "swiss"]
[EventRounds "9"]
[EventCountry "GER"]
[SourceTitle "playchess.com"]
[Source "ChessBase"]
[SourceQuality "1"]
[TimeControl "40/5400+30:1800+30"]

1. e4 {[%emt 0:00:00]} e5 {[%emt 0:00:00]} 2. Nf3 {[%emt 0:00:00]} Nc6 {[%emt 0:00:00]} 3. Bc4 {[%emt 0:00:00]} Bc5 {[%emt 0:00:00]} 4. c3 {[%emt 0:00:00]} Nf6 {[%emt 0:00:00]} 5. d3 {[%emt 0:00:00]} a6 {[%emt 0:00:00]} 6. a4 {[%emt 0:00:00]} Ba7 {[%emt 0:00:02]} 7. O-O {[%emt 0:00:19]} d6 {[%emt 0:00:43]} 8. Re1 {[%emt 0:00:56]} h6 {[%emt 0:09:39]} 9. h3 {[%emt 0:01:28]} O-O {[%emt 0:01:15]} 10. Nbd2 {[%emt 0:04:51]} Ne7 {[%emt 0:02:41]} 11. Nf1 {[%emt 0:04:53]} Ng6 {[%emt 0:00:37]} 12. Ng3 {[%emt 0:03:35]} c6 {[%emt 0:03:45]} 13. Bb3 {[%emt 0:07:40]} Re8 {[%emt 0:06:57]} 14. d4 {[%emt 0:02:52]} Be6 {[%emt 0:10:01]} 15. Bc2 {[%emt 0:03:47]} Qc7 {[%emt 0:09:27]} 16. Be3 {[%emt 0:02:16]} Rad8 {[%emt 0:05:11]} 17. Qd2 {[%emt 0:02:38]} d5 {[%emt 0:03:39]} 18. exd5 {[%emt 0:07:14]} Nxd5 {[%emt 0:03:54]} 19. Bxh6 {[%emt 0:08:55]} exd4 {[%emt 0:01:26]} 20. Bxg7 {[%emt 0:02:31]} Qxg3 {[%emt 0:05:44]} 21. fxg3 {[%emt 0:05:21]} dxc3+ {[%emt 0:00:06]} 22. Qd4 {[%emt 0:00:02]} Bxd4+ {[%emt 0:00:08]} 23. Bxd4 {[%emt 0:00:01]} cxb2 {[%emt 0:02:39]} 24. Rab1 {[%emt 0:06:24]} Nb4 {[%emt 0:06:13]} 25. Rxb2 {[%emt 0:01:11]} Nxc2 {[%emt 0:00:40]} 26. Rxc2 {[%emt 0:00:01]} Bd5 {[%emt 0:03:05]} 27. Rxe8+ {[%emt 0:00:36]} Rxe8 {[%emt 0:00:01]} 28. a5 {[%emt 0:00:36]} Re7 {[%emt 0:06:08] normal} 1/2-1/2

[Event "GER-ch Youth U16 2019"]
[Site "Willingen"]
[Date "2019.06.14"]
[Round "8.4"]
[White "Koellner, Ruben Gideon"]
[Black "Fromm, Marius"]
[Result "1/2-1/2"]
[ECO "D04"]
[WhiteElo "2299"]
[BlackElo "2038"]
[Annotator "NA"]
[PlyCount "117"]
[EventDate "2019.06.07"]
[EventType "swiss"]
[EventRounds "9"]
[EventCountry "GER"]
[SourceTitle "playchess.com"]
[Source "ChessBase"]
[SourceQuality "1"]
[TimeControl "40/5400+30:1800+30"]

1. d4 {[%emt 0:00:00]} d5 {[%emt 0:00:00]} 2. Nf3 {[%emt 0:00:00]} Nf6 {[%emt 0:00:00]} 3. e3 {[%emt 0:00:00]} c5 {[%emt 0:14:58]} 4. dxc5 {[%emt 0:00:14]} e6 {[%emt 0:02:19]} 5. b4 {[%emt 0:04:47]} a5 {[%emt 0:02:30]} 6. c3 {[%emt 0:05:28]} axb4 {[%emt 0:08:05]} 7. cxb4 {[%emt 0:00:05]} b6 {[%emt 0:00:06]} 8. Bb5+ {[%emt 0:12:27]} Bd7 {[%emt 0:00:11]} 9. Bxd7+ {[%emt 0:00:10]} Nbxd7 {[%emt 0:03:15]} 10. O-O {[%emt 0:03:47]} bxc5 {[%emt 0:00:09]} 11. b5 {[%emt 0:04:38]} Bd6 {[%emt 0:07:57]} 12. Bb2 {[%emt 0:00:52]} O-O {[%emt 0:03:01]} 13. a4 {[%emt 0:02:51]} Qc7 {[%emt 0:06:19]} 14. Nbd2 {[%emt 0:12:49]} c4 {[%emt 0:08:18]} 15. Qc2 {[%emt 0:04:32]} Rfc8 {[%emt 0:01:25]} 16. Bc3 {[%emt 0:01:29]} e5 {[%emt 0:02:23]} 17. h3 {[%emt 0:01:55]} Nc5 {[%emt 0:03:52]} 18. Rfb1 {[%emt 0:04:54]} Nd3 {[%emt 0:09:42]} 19. Ne1 {[%emt 0:07:26]} e4 {[%emt 0:05:50]} 20. a5 {[%emt 0:03:36]} Bh2+ {[%emt 0:03:37]} 21. Kf1 {[%emt 0:01:37]} Qd7 {[%emt 0:03:11]} 22. Nxd3 {[%emt 0:07:23]} cxd3 {[%emt 0:00:22]} 23. Qb2 {[%emt 0:00:12]} d4 {[%emt 0:00:27]} 24. exd4 {[%emt 0:04:44]} Qf5 {[%emt 0:02:10]} 25. Re1 {[%emt 0:01:31]} Bg3 {[%emt 0:00:39]} 26. Nb1 {[%emt 0:02:04]} Nd5 {[%emt 0:00:43]} 27. Kg1 {[%emt 0:01:20]} Nxc3 {[%emt 0:01:08]} 28. Nxc3 {[%emt 0:00:35]} Rxc3 {[%emt 0:00:23]} 29. Qxc3 {[%emt 0:00:20]} Bxf2+ {[%emt 0:00:20]} 30. Kh1 {[%emt 0:00:18]} Bxe1 {[%emt 0:00:15]} 31. Qxe1 {[%emt 0:00:46]} Qxb5 {[%emt 0:01:44]} 32. Qxe4 {[%emt 0:00:08]} Re8 {[%emt 0:00:22]} 33. Qf4 {[%emt 0:02:04]} g5 {[%emt 0:03:35]} 34. Qf1 {[%emt 0:01:46]} Qb2 {[%emt 0:02:00]} 35. Rd1 {[%emt 0:02:10]} Qe2 {[%emt 0:02:18]} 36. Kg1 {[%emt 0:03:51]} Qe3+ {[%emt 0:02:24]} 37. Qf2 {[%emt 0:01:22]} Qe2 {[%emt 0:01:10]} 38. Rd2 {[%emt 0:01:42]} Qe1+ {[%emt 0:00:38]} 39. Qxe1 {[%emt 0:00:06]} Rxe1+ {[%emt 0:00:06]} 40. Kf2 {[%emt 0:00:04]} Ra1 {[%emt 0:00:06]} 41. Rxd3 {[%emt 0:30:09]} Rxa5 {[%emt 0:30:04]} 42. g4 {[%emt 0:00:00]} Kf8 {[%emt 0:00:00]} 43. Ke3 {[%emt 0:00:00]} f5 {[%emt 0:00:00]} 44. gxf5 {[%emt 0:00:00]} Rxf5 {[%emt 0:00:00]} 45. Ke4 {[%emt 0:00:00]} Rf1 {[%emt 0:00:00]} 46. Ra3 {[%emt 0:00:00]} Kf7 {[%emt 0:00:00]} 47. Ke5 {[%emt 0:00:00]} h5 {[%emt 0:00:00]} 48. Rg3 {[%emt 0:00:00]} Kg6 {[%emt 0:00:00]} 49. d5 {[%emt 0:00:00]} Re1+ {[%emt 0:00:00]} 50. Kd6 {[%emt 0:00:00]} Kf5 {[%emt 0:00:00]} 51. Kc6 {[%emt 0:00:00]} Rc1+ {[%emt 0:00:00]} 52. Kd7 {[%emt 0:00:00]} Rd1 {[%emt 0:00:00]} 53. d6 {[%emt 0:00:00]} Kf4 {[%emt 0:00:00]} 54. Rc3 {[%emt 0:00:00]} g4 {[%emt 0:00:00]} 55. hxg4 {[%emt 0:00:00]} hxg4 {[%emt 0:00:00]} 56. Kc7 {[%emt 0:00:00]} g3 {[%emt 0:00:00]} 57. Rxg3 {[%emt 0:00:00]} Kxg3 {[%emt 0:00:00]} 58. d7 {[%emt 0:00:00]} Rxd7+ {[%emt 0:00:00]} 59. Kxd7 {[%emt 0:00:00] normal} 1/2-1/2

[Event "GER-ch Youth U16 2019"]
[Site "Willingen"]
[Date "2019.06.14"]
[Round "8.5"]
[White "Nguyen, Alex Dac-Vuong"]
[Black "Trifan, Andrei Ioan"]
[Result "1/2-1/2"]
[ECO "C50"]
[WhiteElo "2287"]
[BlackElo "2268"]
[Annotator "NA"]
[PlyCount "115"]
[EventDate "2019.06.07"]
[EventType "swiss"]
[EventRounds "9"]
[EventCountry "GER"]
[SourceTitle "playchess.com"]
[Source "ChessBase"]
[SourceQuality "1"]
[TimeControl "40/5400+30:1800+30"]

1. e4 {[%emt 0:00:00]} e5 {[%emt 0:00:00]} 2. Nf3 {[%emt 0:00:00]} Nc6 {[%emt 0:00:06]} 3. Bc4 {[%emt 0:00:00]} Bc5 {[%emt 0:00:43]} 4. O-O {[%emt 0:00:00]} Nf6 {[%emt 0:01:57]} 5. d3 {[%emt 0:00:04]} O-O {[%emt 0:04:58]} 6. Nbd2 {[%emt 0:00:22]} d6 {[%emt 0:01:08]} 7. c3 {[%emt 0:01:11]} a6 {[%emt 0:01:28]} 8. a4 {[%emt 0:01:17]} Ba7 {[%emt 0:00:53]} 9. Bb3 {[%emt 0:01:47]} Ne7 {[%emt 0:07:52]} 10. Nc4 {[%emt 0:04:00]} Ng6 {[%emt 0:02:33]} 11. Be3 {[%emt 0:05:07]} Bxe3 {[%emt 0:01:14]} 12. Nxe3 {[%emt 0:00:45]} c6 {[%emt 0:07:27]} 13. a5 {[%emt 0:11:25]} d5 {[%emt 0:02:26]} 14. exd5 {[%emt 0:01:27]} cxd5 {[%emt 0:07:11]} 15. d4 {[%emt 0:00:40]} e4 {[%emt 0:04:14]} 16. Ne5 {[%emt 0:02:32]} Re8 {[%emt 0:04:43]} 17. Nxg6 {[%emt 0:23:51]} hxg6 {[%emt 0:02:40]} 18. c4 {[%emt 0:00:16]} dxc4 {[%emt 0:03:24]} 19. Bxc4 {[%emt 0:00:24]} b5 {[%emt 0:03:26]} 20. axb6 {[%emt 0:06:26]} Qxb6 {[%emt 0:00:03]} 21. Qd2 {[%emt 0:08:39]} Bb7 {[%emt 0:04:36]} 22. Ra5 {[%emt 0:07:29]} Red8 {[%emt 0:03:24]} 23. d5 {[%emt 0:06:47]} Nd7 {[%emt 0:00:57]} 24. Rfa1 {[%emt 0:00:49]} Ne5 {[%emt 0:04:44]} 25. Be2 {[%emt 0:01:38]} f5 {[%emt 0:04:07]} 26. Nc4 {[%emt 0:03:57]} Nxc4 {[%emt 0:04:31]} 27. Bxc4 {[%emt 0:00:02]} Rd6 {[%emt 0:00:35]} 28. b3 {[%emt 0:03:11]} Rc8 {[%emt 0:02:06]} 29. g3 {[%emt 0:02:26]} Rc5 {[%emt 0:03:04]} 30. Rxc5 {[%emt 0:00:06]} Qxc5 {[%emt 0:00:02]} 31. Ra5 Qc7 {[%emt 0:01:38]} 32. h4 {[%emt 0:01:52]} Kh7 {[%emt 0:02:43]} 33. Ra4 {[%emt 0:01:08]} Qd8 {[%emt 0:01:38]} 34. Ra5 {[%emt 0:00:30]} f4 {[%emt 0:01:23]} 35. Qxf4 {[%emt 0:02:18]} Rf6 {[%emt 0:08:04]} 36. Qd2 {[%emt 0:00:06]} Rf3 {[%emt 0:02:01]} 37. Ra2 {[%emt 0:02:21]} e3 {[%emt 0:00:34]} 38. Qd4 {[%emt 0:00:59]} exf2+ {[%emt 0:01:05]} 39. Rxf2 {[%emt 0:00:10]} Rxg3+ {[%emt 0:00:38]} 40. Kh2 {[%emt 0:00:22]} Qd6 {[%emt 0:01:45]} 41. Qf4 {[%emt 0:30:09]} Qxf4 {[%emt 0:31:10]} 42. Rxf4 {[%emt 0:01:23]} Re3 {[%emt 0:00:00]} 43. d6 {[%emt 0:00:00]} Re8 {[%emt 0:00:00]} 44. Rf7 {[%emt 0:00:00]} Bc6 {[%emt 0:00:00]} 45. d7 {[%emt 0:00:00]} Rd8 {[%emt 0:00:00]} 46. Be6 {[%emt 0:00:00]} a5 {[%emt 0:00:00]} 47. Kg3 {[%emt 0:00:00]} Kh6 {[%emt 0:00:00]} 48. Kf4 {[%emt 0:00:00]} a4 {[%emt 0:00:00]} 49. bxa4 {[%emt 0:00:00]} Bxa4 {[%emt 0:00:00]} 50. Ke5 {[%emt 0:00:00]} Kh5 {[%emt 0:00:00]} 51. Rxg7 {[%emt 0:00:00]} Kxh4 {[%emt 0:00:00]} 52. Kf6 {[%emt 0:00:00]} g5 {[%emt 0:00:00]} 53. Ke7 {[%emt 0:00:00]} Bxd7 {[%emt 0:00:00]} 54. Rh7+ {[%emt 0:00:00]} Kg3 {[%emt 0:00:00]} 55. Bxd7 {[%emt 0:00:00]} Ra8 {[%emt 0:00:00]} 56. Kf6 {[%emt 0:00:00]} Ra5 {[%emt 0:00:00]} 57. Rh3+ {[%emt 0:00:00]} Kf4 {[%emt 0:00:00]} 58. Rc3 {[%emt 0:00:00] normal} 1/2-1/2

[Event "GER-ch Youth U16 2019"]
[Site "Willingen"]
[Date "2019.06.14"]
[Round "8.6"]
[White "Post, Hugo"]
[Black "Woelk, Tom-Frederic"]
[Result "1-0"]
[ECO "C80"]
[WhiteElo "2113"]
[BlackElo "2239"]
[Annotator "NA"]
[PlyCount "47"]
[EventDate "2019.06.07"]
[EventType "swiss"]
[EventRounds "9"]
[EventCountry "GER"]
[SourceTitle "playchess.com"]
[Source "ChessBase"]
[SourceQuality "1"]
[TimeControl "40/5400+30:1800+30"]

1. e4 {[%emt 0:00:00]} e5 {[%emt 0:00:03]} 2. Nf3 {[%emt 0:00:00]} Nc6 {[%emt 0:00:05]} 3. Bb5 {[%emt 0:00:13]} a6 {[%emt 0:00:07]} 4. Ba4 {[%emt 0:00:08]} Nf6 {[%emt 0:00:07]} 5. O-O {[%emt 0:00:47]} Nxe4 {[%emt 0:00:12]} 6. d4 {[%emt 0:08:45]} Be7 {[%emt 0:01:00]} 7. Qe2 {[%emt 0:19:17]} b5 {[%emt 0:00:55]} 8. Bb3 {[%emt 0:06:28]} d5 {[%emt 0:01:51]} 9. dxe5 {[%emt 0:00:42]} Na5 {[%emt 0:09:57]} 10. Rd1 {[%emt 0:11:51]} Bb7 {[%emt 0:03:08]} 11. Nd4 {[%emt 0:09:56]} Qd7 {[%emt 0:13:49]} 12. c4 {[%emt 0:06:57]} Nxc4 {[%emt 0:08:46]} 13. Bc2 {[%emt 0:00:40]} c5 {[%emt 0:13:31]} 14. Bxe4 {[%emt 0:02:27]} dxe4 {[%emt 0:18:21]} 15. e6 {[%emt 0:01:01]} Qxd4 {[%emt 0:03:25]} 16. Rxd4 {[%emt 0:00:06]} cxd4 {[%emt 0:00:02]} 17. b3 {[%emt 0:04:43]} d3 {[%emt 0:02:01]} 18. Qg4 {[%emt 0:00:31]} Bf6 {[%emt 0:00:17]} 19. bxc4 {[%emt 0:00:29]} Bxa1 {[%emt 0:00:18]} 20. exf7+ {[%emt 0:00:10]} Kd8 {[%emt 0:00:41]} 21. Ba3 {[%emt 0:01:11]} bxc4 {[%emt 0:06:57]} 22. Qe6 {[%emt 0:01:36]} Bf6 {[%emt 0:01:55]} 23. Bc5 {[%emt 0:01:32]} Kc7 {[%emt 0:00:18]} 24. Bb6+ {[%emt 0:00:10] normal} 1-0